bitfinex/quotes_BTCUSD_20230111
["timestamp","ask_amount","ask_price","bid_price","bid_amount"]
[1673430702475,4.66583965,17459.0,17458.0,0.00450323]
[1673430702732,5.21833965,17459.0,17458.0,0.00450323]
[1673430703213,5.29801194,17459.0,17458.0,0.00450323]
[1673430703737,5.21833965,17459.0,17458.0,0.00450323]
[1673430704030,5.28966855,17459.0,17458.0,0.00450323]
[1673430704527,5.28786349,17459.0,17458.0,0.00450323]
[1673430704783,4.70867378,17459.0,17458.0,0.00450323]
[1673430705327,4.63914994,17459.0,17458.0,0.00450323]
[1673430705842,5.29423465,17459.0,17458.0,0.00450323]
[1673430706456,5.21833965,17459.0,17458.0,0.00348774]
[1673430707549,4.63894859,17459.0,17458.0,0.00348774]
[1673430708841,4.05975888,17459.0,17458.0,0.00348774]
[1673430709096,4.63894859,17459.0,17458.0,0.00348774]
[1673430712206,4.05975888,17459.0,17458.0,0.00348774]
[1673430712718,4.34615888,17459.0,17458.0,0.00348774]
[1673430712968,4.92534859,17459.0,17458.0,0.00348774]
[1673430713225,5.48111923,17459.0,17458.0,0.00348774]
[1673430713476,4.98215085,17459.0,17458.0,0.00348774]
[1673430713979,4.97193654,17459.0,17458.0,0.00348774]
[1673430714496,4.90192952,17459.0,17458.0,0.00348774]
[1673430714756,4.41967151,17459.0,17458.0,0.00348774]
[1673430715018,4.34615888,17459.0,17458.0,0.00348774]
[1673430716286,4.05975888,17459.0,17458.0,0.00348774]
[1673430716529,4.34614888,17459.0,17458.0,0.00348774]
[1673430716777,4.92553994,17459.0,17458.0,0.00348774]
[1673430717268,4.34614888,17459.0,17458.0,0.00348774]
[1673430719009,4.423006,17459.0,17458.0,0.00348774]
[1673430719534,4.34614888,17459.0,17458.0,0.00348774]
[1673430721046,4.92533859,17459.0,17458.0,0.00348774]
[1673430722337,5.00020795,17459.0,17458.0,0.00348774]
[1673430722596,4.92533859,17459.0,17458.0,0.00348774]
[1673430723621,5.00619436,17459.0,17458.0,0.00348774]
[1673430723907,4.92533859,17459.0,17458.0,0.00348774]
[1673430724196,4.99886386,17459.0,17458.0,0.00348774]
[1673430724414,4.41967415,17459.0,17458.0,0.00348774]
[1673430724660,4.56670359,17459.0,17458.0,0.00348774]
[1673430725429,4.40053853,17459.0,17458.0,0.00348774]
[1673430726481,4.40053853,17459.0,17458.0,0.00286069]
[1673430726755,4.32701326,17459.0,17458.0,0.00286069]
[1673430727499,4.90640432,17459.0,17458.0,0.00286069]
[1673430728020,5.48559403,17459.0,17458.0,0.00286069]
[1673430728266,4.40179645,17459.0,17458.0,0.00286069]
[1673430729346,4.3874926,17459.0,17458.0,0.00286069]
[1673430731390,4.1011026,17459.0,17458.0,0.00286069]
[1673430731642,4.1190326,17459.0,17458.0,0.00286069]
[1673430733146,4.3874926,17459.0,17458.0,0.00286069]
[1673430734690,4.90253176,17459.0,17458.0,0.00286069]
[1673430734956,4.91720943,17459.0,17458.0,0.00286069]
[1673430735214,4.4021711,17459.0,17458.0,0.00286069]
[1673430735754,4.5682753,17459.0,17458.0,0.00286069]
[1673430736006,4.40459773,17459.0,17458.0,0.00286069]
[1673430736536,4.56826451,17459.0,17458.0,0.00286069]
[1673430736791,4.91965087,17459.0,17458.0,0.00286069]
[1673430737056,4.40460444,17459.0,17458.0,0.00286069]
[1673430737770,4.11821444,17459.0,17458.0,0.00286069]
[1673430740510,5.80393737,17459.0,17458.0,0.00286069]
[1673430740771,5.22454631,17459.0,17458.0,0.00286069]
[1673430741024,5.28933313,17459.0,17458.0,0.00286069]
[1673430741276,4.71014342,17459.0,17458.0,0.00286069]
[1673430741778,5.22526365,17459.0,17458.0,0.00286069]
[1673430742051,3.44923641,17459.0,17458.0,0.00286069]
[1673430742278,2.42970005,17459.0,17458.0,0.57483936]
[1673430742528,1.0418057,17459.0,17458.0,0.00286069]
[1673430742776,1.80034206,17459.0,17458.0,0.00286069]
[1673430744032,1.80884206,17459.0,17458.0,0.00286069]
[1673430744279,2.23805741,17459.0,17458.0,0.00286069]
[1673430745275,2.58131607,17459.0,17458.0,0.00286069]
[1673430745525,2.23805741,17459.0,17458.0,0.00286069]
[1673430747901,2.2377522,17459.0,17458.0,0.00286069]
[1673430748446,1.80884206,17459.0,17458.0,0.00286069]
[1673430748932,2.23770642,17459.0,17458.0,0.00286069]
[1673430749131,2.23768673,17459.0,17458.0,0.00286069]
[1673430749429,1.80884206,17459.0,17458.0,0.00275178]
[1673430749922,2.23771302,17459.0,17458.0,0.00275178]
[1673430750488,1.80884206,17459.0,17458.0,0.00275178]
[1673430750709,2.16788706,17459.0,17458.0,0.00275178]
[1673430751202,2.74065706,17459.0,17458.0,0.00275178]
[1673430751472,2.38161206,17459.0,17458.0,0.00275178]
[1673430751727,2.81050563,17459.0,17458.0,0.00275178]
[1673430751985,2.38161206,17459.0,17458.0,0.00275178]
[1673430752208,2.74065706,17459.0,17458.0,0.00275178]
[1673430752721,3.16954718,17459.0,17458.0,0.00275178]
[1673430752986,2.81050218,17459.0,17458.0,0.00275178]
[1673430753490,2.38161206,17459.0,17458.0,0.00275178]
[1673430754024,2.89673641,17459.0,17458.0,0.00275178]
[1673430754267,3.25578141,17459.0,17458.0,0.00275178]
[1673430754979,3.68977645,17459.0,17458.0,0.00275178]
[1673430755518,3.98977645,17459.0,17458.0,0.00275178]
[1673430756488,3.4746521,17459.0,17458.0,0.00275178]
[1673430757260,4.27616645,17459.0,17458.0,0.00275178]
[1673430757759,3.7610421,17459.0,17458.0,0.00275178]
[1673430759534,4.27616645,17459.0,17458.0,0.00275178]
[1673430759781,3.97616645,17459.0,17458.0,0.00275178]
[1673430761291,2.74065706,17459.0,17458.0,0.00275178]
[1673430761535,2.38161206,17459.0,17458.0,0.00275178]
[1673430762028,2.89522641,17459.0,17458.0,0.00275178]
[1673430762534,3.25427141,17459.0,17458.0,0.00275178]
[1673430762783,2.73914706,17459.0,17458.0,0.00275178]
[1673430764116,2.38010206,17459.0,17458.0,0.09823087]
[1673430767753,2.89522641,17459.0,17458.0,0.09823087]
[1673430768309,2.38010206,17459.0,17458.0,0.09823087]
[1673430769343,2.8091583,17459.0,17458.0,0.09823087]
[1673430770371,2.80913933,17459.0,17458.0,0.09823087]
[1673430770645,2.38010206,17459.0,17458.0,0.09823087]
[1673430770904,2.80914516,17459.0,17458.0,0.09823087]
[1673430772748,2.38010206,17459.0,17458.0,0.09823087]
[1673430772976,1.50733206,17459.0,17458.0,0.09823087]
[1673430773488,1.93641407,17459.0,17458.0,0.09823087]
[1673430776074,2.27965168,17459.0,17458.0,0.09823087]
[1673430776329,2.08010206,17459.0,17458.0,0.09823087]
[1673430776615,2.50913167,17459.0,17458.0,0.09823087]
[1673430777057,2.85237759,17459.0,17458.0,0.09823087]
[1673430777306,2.50913167,17459.0,17458.0,0.09823087]
[1673430778567,1.93636167,17459.0,17458.0,0.09823087]
[1673430778837,2.27963637,17459.0,17458.0,0.09823087]
[1673430779308,1.93636167,17459.0,17458.0,0.09823087]
[1673430782417,1.50733206,17459.0,17458.0,0.09813949]
[1673430783018,1.93656089,17459.0,17458.0,0.09813949]
[1673430783188,2.27994744,17459.0,17458.0,0.09813949]
[1673430783451,1.93656089,17459.0,17458.0,0.09813949]
[1673430783928,2.27993805,17459.0,17458.0,0.09813949]
[1673430787344,2.20536767,17459.0,17458.0,0.09813949]
[1673430787591,2.01068917,17459.0,17458.0,0.09813949]
[1673430788104,2.20536833,17459.0,17458.0,0.09813949]
[1673430788843,2.01068917,17459.0,17458.0,0.09813949]
[1673430789093,1.83895375,17459.0,17458.0,0.09813949]
[1673430789412,2.20538288,17459.0,17458.0,0.09813949]
[1673430791491,1.86200572,17459.0,17458.0,0.09813949]
[1673430792495,2.01057846,17459.0,17458.0,0.09813949]
[1673430792972,1.83879849,17459.0,17458.0,0.09813949]
[1673430793492,2.01057846,17459.0,17458.0,0.09813949]
[1673430795208,2.2075886,17459.0,17458.0,0.09813949]
[1673430796943,2.2075927,17459.0,17458.0,0.09813949]
[1673430797214,1.86432625,17459.0,17458.0,0.09813949]
[1673430798447,1.8642201,17459.0,17458.0,0.09813949]
[1673430801908,2.16422253,17459.0,17458.0,0.09813949]
[1673430803116,2.5076248,17459.0,17458.0,0.09813949]
[1673430803872,1.63647095,17459.0,17458.0,0.09813949]
[1673430804403,1.29306868,17459.0,17458.0,0.09813949]
[1673430804659,1.63649255,17459.0,17458.0,0.09813949]
[1673430805162,1.29306868,17459.0,17458.0,0.09813949]
[1673430806634,1.63653293,17459.0,17458.0,0.09813949]
[1673430806877,1.63653437,17459.0,17458.0,0.09813949]
[1673430807123,1.43952013,17459.0,17458.0,0.09813949]
[1673430807368,1.63176822,17459.0,17458.0,0.09813949]
[1673430807612,1.28830253,17459.0,17458.0,0.09813949]
[1673430807860,1.63178813,17459.0,17458.0,0.09813949]
[1673430808717,1.43954004,17459.0,17458.0,0.09813949]
[1673430809740,1.63177652,17459.0,17458.0,0.09813949]
[1673430810517,0.80939709,17459.0,17458.0,0.09813949]
[1673430811050,0.98100368,17459.0,17458.0,0.09813949]
[1673430811274,0.80088938,17459.0,17458.0,0.09813949]
[1673430813897,1.25942574,17459.0,17458.0,0.09813949]
[1673430814643,0.80088938,17459.0,17458.0,0.09813949]
[1673430815150,0.62913506,17459.0,17458.0,0.09813949]
[1673430818666,0.80088938,17459.0,17458.0,0.09813949]
[1673430819190,0.62910761,17459.0,17458.0,0.09813949]
[1673430822027,0.37149065,17459.0,17458.0,0.09813949]
[1673430822533,0.62910761,17459.0,17458.0,0.09813949]
[1673430825446,1.08764397,17459.0,17458.0,0.09813949]
[1673430826807,1.25942574,17459.0,17458.0,0.09806529]
[1673430827059,1.55942574,17459.0,17458.0,0.09806529]
[1673430828325,1.3876335,17459.0,17458.0,0.09806529]
[1673430828836,1.55942574,17459.0,17458.0,0.09806529]
[1673430829126,0.30670145,17459.0,17458.0,0.7260012]
[1673430829633,0.135,17459.0,17458.0,0.7260012]
[1673430830116,1.45670422,17460.0,17458.0,0.7250012]
[1673430830365,0.014,17459.0,17458.0,0.7440012]
[1673430830624,0.94530422,17460.0,17458.0,0.7250012]
[1673430830879,0.014,17459.0,17458.0,0.91548659]
[1673430831134,0.014,17459.0,17458.0,0.7440012]
[1673430832699,0.014,17459.0,17458.0,1.07868659]
[1673430832960,0.014,17459.0,17458.0,1.2662462]
[1673430833514,0.014,17459.0,17458.0,0.9072012]
[1673430833754,0.014,17459.0,17458.0,0.7440012]
[1673430834018,0.014,17459.0,17458.0,0.9081012]
[1673430837267,0.014,17459.0,17458.0,0.7440012]
[1673430837521,0.014,17459.0,17458.0,0.9072012]
[1673430839298,0.014,17459.0,17458.0,0.7440012]
[1673430839802,0.014,17459.0,17458.0,0.9069012]
[1673430840066,0.014,17459.0,17458.0,0.7440012]
[1673430842073,0.18570145,17459.0,17458.0,0.7440012]
[1673430842344,0.64423781,17459.0,17458.0,0.7440012]
[1673430842860,0.18570145,17459.0,17458.0,0.7440012]
[1673430845605,0.014,17459.0,17458.0,0.7440012]
[1673430846780,0.95114528,17460.0,17458.0,0.7250012]
[1673430847078,0.315,17459.0,17458.0,0.7420012]
[1673430847600,0.015,17459.0,17458.0,0.7420012]
[1673430847849,1.25114528,17460.0,17458.0,0.7250012]
[1673430848096,1.26614528,17460.0,17458.0,0.7420012]
[1673430848357,1.25114528,17460.0,17458.0,0.7250012]
[1673430848610,0.015,17459.0,17458.0,0.7420012]
[1673430848871,0.3,17459.0,17458.0,0.7250012]
[1673430849115,1.26614528,17460.0,17458.0,0.7420012]
[1673430849368,1.26614528,17460.0,17458.0,0.7250012]
[1673430849631,0.48670145,17459.0,17458.0,0.7420012]
[1673430850111,0.015,17459.0,17458.0,0.7420012]
[1673430850604,0.18670145,17459.0,17458.0,0.7420012]
[1673430851097,0.17170145,17459.0,17458.0,0.7250012]
[1673430851844,1.25114528,17460.0,17458.0,0.7250012]
[1673430852101,1.25114528,17460.0,17458.0,0.7420012]
[1673430852102,0.015,17459.0,17458.0,0.7420012]
[1673430852878,0.17170145,17459.0,17458.0,0.7250012]
[1673430853119,0.17170145,17459.0,17458.0,0.7420012]
[1673430853416,1.26614528,17460.0,17458.0,0.7420012]
[1673430853878,1.25114528,17460.0,17458.0,0.7250012]
[1673430854129,0.015,17459.0,17458.0,0.7420012]
[1673430854376,1.41524528,17460.0,17458.0,0.7250012]
[1673430854622,1.43024528,17460.0,17458.0,0.7420012]
[1673430854865,1.43024528,17460.0,17458.0,0.7250012]
[1673430855116,1.41524528,17460.0,17458.0,0.7420012]
[1673430855364,0.015,17459.0,17458.0,0.7420012]
[1673430855902,0.17170145,17459.0,17458.0,0.7250012]
[1673430856157,0.42931841,17459.0,17458.0,0.7250012]
[1673430856643,0.17170145,17459.0,17458.0,0.7250012]
[1673430857158,0.17170145,17459.0,17458.0,0.7420012]
[1673430857409,0.17170145,17459.0,17458.0,0.7250012]
[1673430857673,0.18670145,17459.0,17458.0,0.7420012]
[1673430858188,0.64523781,17459.0,17458.0,0.7420012]
[1673430858665,0.44431841,17459.0,17458.0,0.7420012]
[1673430859150,0.90285477,17459.0,17458.0,0.7420012]
[1673430859412,0.44431841,17459.0,17458.0,0.7420012]
[1673430862478,0.18670145,17459.0,17458.0,0.7420012]
[1673430864810,0.44431841,17459.0,17458.0,0.7420012]
[1673430865552,0.18670145,17459.0,17458.0,0.7420012]
[1673430870941,0.44431841,17459.0,17458.0,0.7420012]
[1673430871720,0.18670145,17459.0,17458.0,0.7420012]
[1673430873511,0.18670145,17459.0,17458.0,0.91348659]
[1673430873787,0.015,17459.0,17458.0,0.91348659]
[1673430874811,1.12505316,17460.0,17458.0,0.91348659]
[1673430876127,1.11005316,17460.0,17458.0,0.89648659]
[1673430876389,0.17170145,17459.0,17458.0,0.94048659]
[1673430876654,0.42931841,17459.0,17458.0,0.7690012]
[1673430877943,0.44331841,17459.0,17458.0,0.7690012]
[1673430878196,0.18570145,17459.0,17458.0,0.94271613]
[1673430878704,0.18570145,17459.0,17458.0,0.77123074]
[1673430879492,0.18570145,17459.0,17458.0,0.94271613]
[1673430882075,0.18570145,17459.0,17458.0,0.94059807]
[1673430882843,0.44331841,17459.0,17458.0,0.76911268]
[1673430883346,0.18570145,17459.0,17458.0,0.94059807]
[1673430883870,0.44331841,17459.0,17458.0,0.76911268]
[1673430884410,0.18570145,17459.0,17458.0,0.94059807]
[1673430885551,0.18570145,17459.0,17458.0,0.94048659]
[1673430885694,0.18570145,17459.0,17458.0,0.7690012]
[1673430885695,0.44331841,17459.0,17458.0,0.7690012]
[1673430886459,0.44331841,17459.0,17458.0,0.94048659]
[1673430886460,0.18570145,17459.0,17458.0,0.94048659]
[1673430887555,0.44331841,17459.0,17458.0,0.7693139]
[1673430888068,0.18570145,17459.0,17458.0,0.94079929]
[1673430888566,0.18570145,17459.0,17458.0,0.7693139]
[1673430888829,0.18570145,17459.0,17458.0,0.94079929]
[1673430890801,0.44331841,17459.0,17458.0,0.7693139]
[1673430891306,0.18570145,17459.0,17458.0,0.94079929]
[1673430891553,0.18570145,17459.0,17458.0,0.7690012]
[1673430891803,0.44331841,17459.0,17458.0,0.7690012]
[1673430892563,0.18570145,17459.0,17458.0,0.7690012]
[1673430893563,0.18570145,17459.0,17458.0,0.94048659]
[1673430895135,0.18570145,17459.0,17458.0,0.94271613]
[1673430895741,0.18570145,17459.0,17458.0,0.77123074]
[1673430896259,0.18570145,17459.0,17458.0,0.94271613]
[1673430897632,0.17170145,17459.0,17458.0,0.89871613]
[1673430898163,0.18570145,17459.0,17458.0,0.92248659]
[1673430899190,0.18570145,17459.0,17458.0,0.92259805]
[1673430899450,0.74331841,17459.0,17458.0,0.75103964]
[1673430899702,0.44331841,17459.0,17458.0,0.75103964]
[1673430901212,0.44331841,17459.0,17458.0,0.75092818]
[1673430901486,0.61510256,17459.0,17458.0,0.75092818]
[1673430901745,0.90199942,17459.0,17458.0,0.75092818]
[1673430902026,0.44346306,17459.0,17458.0,0.75092818]
[1673430902533,0.90199942,17459.0,17458.0,0.75092818]
[1673430902785,0.1858461,17459.0,17458.0,2.06839061]
[1673430903287,0.44346306,17459.0,17458.0,0.92252503]
[1673430903552,0.44346306,17459.0,17458.0,0.75103964]
[1673430903794,0.44346306,17459.0,17458.0,0.92252503]
[1673430904041,0.44346306,17459.0,17458.0,0.75103964]
[1673430904306,0.44346306,17459.0,17458.0,0.75092818]
[1673430904832,0.44346306,17459.0,17458.0,0.75103964]
[1673430905089,0.1858461,17459.0,17458.0,2.06839228]
[1673430905347,0.64438246,17459.0,17458.0,1.44034491]
[1673430905574,0.90199942,17459.0,17458.0,0.12299227]
[1673430905817,1.07363892,17459.0,17458.0,0.12299227]
[1673430906318,0.90200377,17459.0,17458.0,0.12299227]
[1673430908815,0.90200377,17459.0,17458.0,0.12310373]
[1673430909093,0.90200377,17459.0,17458.0,0.12299227]
[1673430909342,0.90197476,17459.0,17458.0,0.12299227]
[1673430909598,1.2454605,17459.0,17458.0,0.12299227]
[1673430910382,1.07363892,17459.0,17458.0,0.12299227]
[1673430911139,1.24525322,17459.0,17458.0,0.12299227]
[1673430911395,1.07375713,17459.0,17458.0,0.12299227]
[1673430913212,0.90206029,17459.0,17458.0,0.12299227]
[1673430913470,0.90206029,17459.0,17458.0,0.12310373]
[1673430913736,0.90206029,17459.0,17458.0,0.12299227]
[1673430914523,1.07375713,17459.0,17458.0,0.12299227]
[1673430917244,1.20202475,17459.0,17458.0,0.12299227]
[1673430922151,1.37375713,17459.0,17458.0,0.12299227]
[1673430922932,1.20201673,17459.0,17458.0,0.12299227]
[1673430925441,1.37375713,17459.0,17458.0,0.12299227]
[1673430925690,1.60415078,17459.0,17458.0,0.12299227]
[1673430925945,1.98361818,17459.0,17458.0,0.12299227]
[1673430926194,2.32713453,17459.0,17458.0,0.12299227]
[1673430926452,2.55638818,17459.0,17458.0,0.12299227]
[1673430927681,2.70741654,17459.0,17458.0,0.12299227]
[1673430929161,2.96497683,17459.0,17458.0,0.12299227]
[1673430929408,2.89655207,17459.0,17458.0,0.12299227]
[1673430929663,2.70741654,17459.0,17458.0,0.12299227]
[1673430930393,2.8969301,17459.0,17458.0,0.12299227]
[1673430930643,3.1106551,17459.0,17458.0,0.12299227]
[1673430930886,3.1106551,17459.0,17458.0,0.12287803]
[1673430931134,2.76721483,17459.0,17458.0,0.12287803]
[1673430931661,3.12625983,17459.0,17458.0,0.12287803]
[1673430931913,2.76721483,17459.0,17458.0,0.12287803]
[1673430932163,2.19444483,17459.0,17458.0,0.12287803]
[1673430932920,2.34827683,17459.0,17458.0,0.12287803]
[1673430933430,2.60577675,17459.0,17458.0,0.12287803]
[1673430934208,2.17654549,17459.0,17458.0,0.12287803]
[1673430934455,2.53775497,17459.0,17458.0,0.12287803]
[1673430935441,2.1765287,17459.0,17458.0,0.12287803]
[1673430936679,2.5355737,17459.0,17458.0,0.12287803]
[1673430937201,2.1765287,17459.0,17458.0,0.12287803]
[1673430939535,2.5355737,17459.0,17458.0,0.12287803]
[1673430940028,2.1765287,17459.0,17458.0,0.12287803]
[1673430940281,2.5355737,17459.0,17458.0,0.12287803]
[1673430940505,2.1765287,17459.0,17458.0,0.12287803]
[1673430941530,2.55372851,17459.0,17458.0,0.12287803]
[1673430942024,2.8970703,17459.0,17458.0,0.12287803]
[1673430942985,2.5380253,17459.0,17458.0,0.12287803]
[1673430943744,2.8970703,17459.0,17458.0,0.12287803]
[1673430944256,2.55372851,17459.0,17458.0,0.12287803]
[1673430945017,2.89710318,17459.0,17458.0,0.12287803]
[1673430947313,2.53805818,17459.0,17458.0,0.12287803]
[1673430947564,3.46993337,17459.0,17458.0,0.12287803]
[1673430947811,3.12649851,17459.0,17458.0,0.12287803]
[1673430949587,2.69726725,17459.0,17458.0,0.12287803]
[1673430949846,2.33822225,17459.0,17458.0,0.12287803]
[1673430950095,2.69726725,17459.0,17458.0,0.12287803]
[1673430950356,2.33822225,17459.0,17458.0,0.12287803]
[1673430951113,2.69726725,17459.0,17458.0,0.12287803]
[1673430951377,2.2719286,17459.0,17458.0,0.12287803]
[1673430951632,3.50904374,17459.0,17458.0,0.12287803]
[1673430951886,3.4508786,17459.0,17458.0,0.12287803]
[1673430952143,3.51727712,17459.0,17458.0,0.12287803]
[1673430952666,3.4508786,17459.0,17458.0,0.12287803]
[1673430952943,3.50582625,17459.0,17458.0,0.12287803]
[1673430954313,3.50582625,17459.0,17458.0,0.12275927]
[1673430954848,3.52770406,17459.0,17458.0,0.12275927]
[1673430955716,3.01257971,17459.0,17458.0,0.12275927]
[1673430956756,3.52770406,17459.0,17458.0,0.12275927]
[1673430957548,3.01257971,17459.0,17458.0,0.12275927]
[1673430958311,3.01249214,17459.0,17458.0,0.12275927]
[1673430958555,3.23611649,17459.0,17458.0,0.12275927]
[1673430958804,3.53611649,17459.0,17458.0,0.12275927]
[1673430960340,3.51385602,17459.0,17458.0,0.10223836]
[1673430963077,3.45929103,17459.0,17458.0,0.10223836]
[1673430963600,3.5277385,17459.0,17458.0,0.10223836]
[1673430966468,3.45906191,17459.0,17458.0,0.07623836]
[1673430966768,3.09435425,17459.0,17458.0,0.07623836]
[1673430966985,3.09435425,17459.0,17458.0,0.08023836]
[1673430966986,4.04783116,17459.0,17458.0,0.08023836]
[1673430967279,4.62722222,17459.0,17458.0,0.08023836]
[1673430967523,4.62722222,17459.0,17458.0,0.0456723]
[1673430967773,4.61792704,17459.0,17458.0,0.0456723]
[1673430968328,4.61792704,17459.0,17458.0,0.08916234]
[1673430969426,4.78082704,17459.0,17458.0,0.08916234]
[1673430969690,4.78082704,17459.0,17455.0,0.00701395]
[1673430969691,0.64581072,17457.0,17455.0,0.00701395]
[1673430969957,4.62928616,17456.0,17455.0,0.00701395]
[1673430970211,4.45795478,17456.0,17455.0,0.00701395]
[1673430970471,4.75291478,17456.0,17455.0,0.00701395]
[1673430970988,4.92374015,17456.0,17455.0,0.00701395]
[1673430971306,5.50313121,17456.0,17455.0,0.00701395]
[1673430971529,5.8364512,17456.0,17455.0,0.00701395]
[1673430971784,5.41733863,17456.0,17455.0,0.00701395]
[1673430972605,5.90843863,17456.0,17455.0,0.00701395]
[1673430972876,5.32904757,17456.0,17455.0,0.00701395]
[1673430973128,5.50947662,17456.0,17455.0,0.00701395]
[1673430974735,5.01837662,17456.0,17455.0,0.00701395]
[1673430977040,4.21816758,17456.0,17455.0,0.00701395]
[1673430977375,5.08401864,17456.0,17455.0,0.00701395]
[1673430977803,5.59776768,17456.0,17455.0,0.00406321]
[1673430979147,5.08401864,17456.0,17455.0,0.00406321]
[1673430979407,4.79755864,17456.0,17455.0,0.00406321]
[1673430979658,5.08401864,17456.0,17455.0,0.00240524]
[1673430983011,5.51172721,17456.0,17455.0,0.00240524]
[1673430983532,4.93233615,17456.0,17455.0,0.00240524]
[1673430984045,4.50462758,17456.0,17455.0,0.00240524]
[1673430984303,4.9323549,17456.0,17455.0,0.00240524]
[1673430984550,4.50462758,17456.0,17455.0,0.00240524]
[1673430985102,4.50461758,17456.0,17455.0,0.00240524]
[1673430986360,5.08400864,17456.0,17455.0,0.00240524]
[1673430987704,5.59775768,17456.0,17455.0,0.00240524]
[1673430988235,5.08400864,17456.0,17455.0,0.00240524]
[1673430989284,4.79755864,17456.0,17455.0,0.00240524]
[1673430989542,5.08401864,17456.0,17455.0,0.00240524]
[1673430991030,5.59776768,17456.0,17455.0,0.00240524]
[1673430991541,5.31130768,17456.0,17455.0,0.00240524]
[1673430992077,5.08400864,17456.0,17455.0,0.00240524]
[1673430992906,4.50461758,17456.0,17455.0,0.00240524]
[1673430995227,5.01836662,17456.0,17455.0,0.00240524]
[1673430995488,4.21816758,17456.0,17455.0,0.00240524]
[1673430997612,4.27431502,17456.0,17455.0,0.00240524]
[1673430998099,4.78806406,17456.0,17455.0,0.00240524]
[1673430999123,4.21816758,17456.0,17455.0,0.00240524]
[1673430999370,4.79755864,17456.0,17455.0,0.00240524]
[1673430999614,5.59775768,17456.0,17455.0,0.00209595]
[1673431000107,5.01836662,17456.0,17455.0,0.00209595]
[1673431001413,4.73191662,17456.0,17455.0,0.00209595]
[1673431001677,5.01835662,17456.0,17455.0,0.00209595]
[1673431004322,5.07900374,17456.0,17455.0,0.00209595]
[1673431004582,5.01835662,17456.0,17455.0,0.00209595]
[1673431004825,5.31130768,17456.0,17455.0,0.00209595]
[1673431005063,5.41708933,17456.0,17455.0,0.00209595]
[1673431006854,5.99603523,17456.0,17455.0,0.00209595]
[1673431007866,5.70958523,17456.0,17455.0,0.00209595]
[1673431008143,5.99603523,17456.0,17455.0,0.00209595]
[1673431008469,5.47496452,17456.0,17455.0,0.00209595]
[1673431008649,4.60956862,17456.0,17455.0,0.00209595]
[1673431009652,5.13019417,17456.0,17455.0,0.00209595]
[1673431009904,5.20065598,17456.0,17455.0,0.00209595]
[1673431011171,4.62171008,17456.0,17455.0,0.00209595]
[1673431013755,4.55124827,17456.0,17455.0,0.00209595]
[1673431014025,5.00805279,17456.0,17455.0,0.00209595]
[1673431014270,5.41663417,17456.0,17455.0,0.00209595]
[1673431015093,5.13019417,17456.0,17455.0,0.00209595]
[1673431015357,5.41663417,17456.0,17455.0,0.00209595]
[1673431016692,5.47390904,17456.0,17455.0,0.00209595]
[1673431018619,4.83768827,17456.0,17455.0,0.00209595]
[1673431019566,4.83768827,17456.0,17455.0,0.00182704]
[1673431020773,5.41663417,17456.0,17455.0,0.00182704]
[1673431021996,4.04860207,17456.0,17455.0,0.00182704]
[1673431022242,3.64529958,17456.0,17455.0,0.00182704]
[1673431022483,4.22424548,17456.0,17455.0,0.00182704]
[1673431022721,3.64529958,17456.0,17455.0,0.00182704]
[1673431022958,4.22424548,17456.0,17455.0,0.00182704]
[1673431023239,3.64529958,17456.0,17455.0,0.00182704]
[1673431023476,3.70728601,17456.0,17455.0,0.00182704]
[1673431024230,3.70093551,17456.0,17455.0,0.00182704]
[1673431024715,3.64529958,17456.0,17455.0,0.00182704]
[1673431024952,4.22424548,17456.0,17455.0,0.00182704]
[1673431025441,3.64529958,17456.0,17455.0,0.00182704]
[1673431025944,3.70411834,17456.0,17455.0,0.00182704]
[1673431028386,4.13990715,17456.0,17455.0,0.00182704]
[1673431028635,4.88195305,17456.0,17455.0,0.00182704]
[1673431028921,4.72042617,17456.0,17455.0,0.00182704]
[1673431029126,4.38734548,17456.0,17455.0,0.00182704]
[1673431034828,4.72042617,17456.0,17455.0,0.00182704]
[1673431035348,4.14148027,17456.0,17455.0,0.00182704]
[1673431035864,4.38832552,17456.0,17455.0,0.00182704]
[1673431036124,4.72140621,17456.0,17455.0,0.00182704]
[1673431036376,4.83397804,17456.0,17455.0,0.00182704]
[1673431038213,4.72140621,17456.0,17455.0,0.00182704]
[1673431039508,5.00785621,17456.0,17455.0,0.00182704]
[1673431039761,5.00785621,17456.0,17455.0,0.00157]
[1673431041141,4.72140621,17456.0,17455.0,0.00157]
[1673431041385,4.40625552,17456.0,17455.0,0.00157]
[1673431041646,4.83729173,17456.0,17455.0,0.00157]
[1673431041927,5.17037242,17456.0,17455.0,0.00157]
[1673431043157,4.59044648,17456.0,17455.0,0.00157]
[1673431044146,4.59044648,17456.0,17455.0,0.00090453]
[1673431044383,4.85898648,17456.0,17455.0,0.00090453]
[1673431044898,5.43888285,17456.0,17455.0,0.00090453]
[1673431045147,5.15241285,17456.0,17455.0,0.00090453]
[1673431045403,5.43888285,17456.0,17455.0,0.00090453]
[1673431046440,4.85898648,17456.0,17455.0,0.00090453]
[1673431047205,4.57251648,17456.0,17455.0,0.00090453]
[1673431047457,4.85898648,17456.0,17455.0,0.00090453]
[1673431049227,5.43882172,17456.0,17455.0,0.00090453]
[1673431052035,4.85898648,17456.0,17455.0,0.00090453]
[1673431052285,4.57251648,17456.0,17455.0,0.00090453]
[1673431052550,4.85899648,17456.0,17455.0,0.00090453]
[1673431053125,4.57251648,17456.0,17455.0,0.00090453]
[1673431053385,5.10568718,17456.0,17455.0,0.00090453]
[1673431053626,5.43876787,17456.0,17455.0,0.00090453]
[1673431053881,5.27566787,17456.0,17455.0,0.00090453]
[1673431054461,4.69589648,17456.0,17455.0,0.00052074]
[1673431054901,4.94256124,17456.0,17455.0,0.00052074]
[1673431055151,4.69589648,17456.0,17455.0,0.00052074]
[1673431055409,4.94258017,17456.0,17455.0,0.00052074]
[1673431055668,5.27566086,17456.0,17455.0,0.00052074]
[1673431058227,4.98918086,17456.0,17455.0,0.00052074]
[1673431058495,5.27565086,17456.0,17455.0,0.00052074]
[1673431059246,4.98918086,17456.0,17455.0,0.00052074]
[1673431059533,5.27565086,17456.0,17455.0,0.00052074]
[1673431059758,0.3,17455.0,17454.0,0.00793923]
[1673431060030,2.75599758,17455.0,17454.0,0.00793923]
[1673431060278,3.37554827,17455.0,17454.0,0.00793923]
[1673431061320,3.39754827,17455.0,17454.0,0.00793923]
[1673431062601,3.56164827,17455.0,17454.0,0.00793923]
[1673431062844,4.14141265,17455.0,17454.0,0.00793923]
[1673431063315,3.9199041,17455.0,17454.0,0.00793923]
[1673431063537,4.41365666,17455.0,17454.0,0.00793923]
[1673431063783,4.70013666,17455.0,17454.0,0.00793923]
[1673431064289,4.75897277,17455.0,17454.0,0.00793923]
[1673431064782,4.70013666,17455.0,17454.0,0.00793923]
[1673431065037,4.76710785,17455.0,17454.0,0.00793923]
[1673431065246,4.41365666,17455.0,17454.0,0.00793923]
[1673431065490,4.70013666,17455.0,17454.0,0.00793923]
[1673431065736,4.21806307,17455.0,17454.0,0.00793923]
[1673431066044,3.63829869,17455.0,17454.0,0.00793923]
[1673431066303,4.21806307,17455.0,17454.0,0.00793923]
[1673431067301,4.14142265,17455.0,17454.0,0.00793923]